bitfinex/quotes_BTCUSD_20250313
["timestamp","ask_amount","ask_price","bid_price","bid_amount"]
[1741890518198,0.31525158,81029.0,81028.0,0.0004617]
[1741890518602,0.01525158,81029.0,81028.0,0.0004617]
[1741890518953,0.01425158,81029.0,81028.0,0.0014617]
[1741890519151,0.246823,81030.0,81028.0,0.0014617]
[1741890519379,0.246823,81030.0,81028.0,0.0004617]
[1741890519553,0.261078,81030.0,81028.0,0.0014617]
[1741890519752,0.273419,81030.0,81028.0,0.0014617]
[1741890520159,0.43204199,81029.0,81028.0,0.0004617]
[1741890520359,0.43204199,81029.0,81014.0,0.0003374]
[1741890520360,0.60048184,81029.0,81014.0,0.0003374]
[1741890520559,0.55921,81015.0,81014.0,0.00046145]
[1741890520738,0.67891099,81015.0,81014.0,0.00046145]
[1741890522379,0.67991099,81015.0,81014.0,0.00046145]
[1741890522586,0.69445184,81015.0,81014.0,0.00046145]
[1741890522784,0.69445184,81015.0,81014.0,4.5e-07]
[1741890522968,0.69345184,81015.0,81014.0,4.5e-07]
[1741890523355,0.69445184,81015.0,81014.0,4.5e-07]
[1741890524561,0.69345184,81015.0,81014.0,4.5e-07]
[1741890525028,0.70445184,81015.0,81014.0,4.5e-07]
[1741890525203,0.71391905,81015.0,81014.0,4.5e-07]
[1741890525460,0.70291905,81015.0,81014.0,4.5e-07]
[1741890525649,0.7330657,81015.0,81014.0,4.5e-07]
[1741890525856,0.7380657,81015.0,81014.0,4.5e-07]
[1741890526531,0.7430657,81015.0,81014.0,4.5e-07]
[1741890526739,1.32752659,81015.0,81014.0,4.5e-07]
[1741890526947,1.2075657,81015.0,81014.0,4.5e-07]
[1741890527062,1.2075657,81015.0,81000.0,0.25]
[1741890527063,0.559255,81001.0,81000.0,2.3e-07]
[1741890527281,0.559255,81001.0,81000.0,0.00012432]
[1741890527282,0.85889684,81001.0,81000.0,0.00012432]
[1741890528463,0.86089684,81001.0,81000.0,0.00012432]
[1741890528765,0.86289684,81001.0,81000.0,0.00012432]
[1741890531279,1.10699684,81001.0,81000.0,0.00012432]
[1741890531430,1.27167684,81001.0,81000.0,0.00012432]
[1741890532343,1.25933184,81001.0,81000.0,0.00012432]
[1741890532531,1.27167684,81001.0,81000.0,0.00012432]
[1741890533845,1.10699684,81001.0,81000.0,0.00012432]
[1741890534043,0.96951319,81001.0,81000.0,0.00012432]
[1741890534246,0.98185819,81001.0,81000.0,0.00046212]
[1741890534628,1.02260319,81001.0,81000.0,0.00046212]
[1741890534836,1.02260319,81001.0,81000.0,0.01280712]
[1741890534837,0.4135,81001.0,81000.0,0.01280712]
[1741890535100,0.002,81001.0,81000.0,0.01280712]
[1741890535307,0.27117449,81012.0,81004.0,0.259245]
[1741890535441,0.001,81001.0,81000.0,0.00046212]
[1741890535647,0.002,81001.0,81000.0,0.00046212]
[1741890536042,0.001,81001.0,81000.0,0.25972012]
[1741890536562,0.11970099,81001.0,81000.0,0.00046212]
[1741890536760,0.67895599,81001.0,81000.0,0.00346212]
[1741890536961,0.69349684,81001.0,81000.0,0.00346212]
[1741890537568,0.69349684,81001.0,80995.0,0.0003374]
[1741890537569,0.559271,80996.0,80995.0,0.0003374]
[1741890537891,0.69351284,80996.0,80995.0,0.00044134]
[1741890539044,0.69551284,80996.0,80995.0,0.00044134]
[1741890539489,0.69551284,80996.0,80995.0,3.4e-07]
[1741890539690,0.69551284,80996.0,80978.0,0.000338]
[1741890539691,0.559303,80986.0,80978.0,0.000338]
[1741890539894,0.69354484,80986.0,80985.0,0.01012414]
[1741890540096,0.83025699,80986.0,80985.0,0.01012414]
[1741890540250,0.41970099,80986.0,80985.0,0.01012414]
[1741890540470,0.43204799,80986.0,80985.0,0.01012414]
[1741890540674,0.67900399,80986.0,80985.0,0.01012414]
[1741890541511,0.84260399,80986.0,80985.0,0.01012414]
[1741890541929,0.24694,80992.0,80987.0,0.012347]
[1741890542128,0.01388559,80995.0,80993.0,0.246934]
[1741890542328,0.246934,80994.0,80988.0,0.24695]
[1741890542669,0.01388559,80995.0,80990.0,0.012347]
[1741890542829,0.01388559,80995.0,80994.0,0.012346]
[1741890543035,0.246885,81010.0,81003.0,0.259247]
[1741890543235,0.3,81011.0,81005.0,0.259239]
[1741890543441,0.0242473,81012.0,81011.0,0.012344]
[1741890543648,0.0242473,81012.0,81010.0,0.246883]
[1741890543649,0.246815,81033.0,81024.0,0.012342]
[1741890543846,0.1636,81022.0,81018.0,0.012342]
[1741890544212,0.1636,81022.0,81021.0,0.259191]
[1741890544419,0.42014,81051.0,81021.0,0.259191]
[1741890544420,0.1636,81027.0,81026.0,0.259175]
[1741890544770,0.3,81034.0,81032.0,0.01234]
[1741890545111,0.02527968,81037.0,81035.0,0.259146]
[1741890545290,0.0001688,81049.0,81048.0,0.012338]
[1741890545628,0.0001688,81049.0,81048.0,0.011338]
[1741890545824,0.01383255,81049.0,81048.0,0.011338]
[1741890546024,0.0001688,81049.0,81048.0,0.011338]
[1741890546650,0.0001688,81049.0,81048.0,0.01146214]
[1741890547668,0.0001688,81049.0,81048.0,0.01746214]
[1741890548856,0.0001688,81049.0,81048.0,0.13716313]
[1741890549029,0.0001688,81049.0,81048.0,0.13639688]
[1741890549237,0.0001688,81049.0,81048.0,0.21429688]
[1741890549448,8e-07,81049.0,81048.0,0.51529688]
[1741890549616,0.0001688,81059.0,81058.0,0.012336]
[1741890549825,0.0001688,81059.0,81058.0,0.37877299]
[1741890550407,0.0001688,81059.0,81058.0,0.37777299]
[1741890551073,1.0304,81103.0,81089.0,0.012332]
[1741890551074,0.16356,81095.0,81089.0,0.012332]
[1741890551288,0.246625,81095.0,81089.0,0.012332]
[1741890551882,0.012331,81093.0,81081.0,0.012333]
[1741890552095,0.246674,81079.0,81072.0,0.259028]
[1741890552252,0.246663,81082.0,81070.0,0.012335]
[1741890552630,0.246653,81086.0,81077.0,0.012333]
[1741890552849,0.11970099,81086.0,81080.0,0.012333]
[1741890553043,0.11970099,81086.0,81079.0,0.012333]
[1741890553242,0.11970099,81086.0,81078.0,0.246676]
[1741890553556,0.41013,81087.0,81077.0,0.012333]
[1741890553557,0.16348,81087.0,81082.0,0.011333]
[1741890553767,0.012332,81084.0,81070.0,0.012335]
[1741890554016,0.246686,81075.0,81067.0,0.012335]
[1741890554194,0.11970099,81083.0,81069.0,0.012335]
[1741890554350,0.11970099,81083.0,81070.0,0.259034]
[1741890554548,0.246678,81078.0,81070.0,0.259034]
[1741890554885,0.246684,81076.0,81069.0,0.012335]
[1741890555086,0.246678,81078.0,81070.0,0.012335]
[1741890555296,0.246679,81077.0,81060.0,0.012336]
[1741890555451,0.3,81076.0,81061.0,0.259063]
[1741890555681,0.246699,81071.0,81061.0,0.012336]
[1741890555907,0.246683,81076.0,81070.0,0.001]
[1741890556169,0.246697,81071.0,81070.0,0.001]
[1741890556584,0.246688,81074.0,81070.0,0.001]
[1741890556762,0.41970099,81073.0,81070.0,0.001]
[1741890557132,0.246704,81069.0,81062.0,0.246723]
[1741890557531,0.246698,81071.0,81064.0,0.259052]
[1741890557732,0.246698,81071.0,81061.0,0.013336]
[1741890557733,0.3,81078.0,81074.0,0.246687]
[1741890557934,0.3,81076.0,81071.0,0.012334]
[1741890558133,0.3,81076.0,81072.0,0.012334]
[1741890558369,0.3003933,81076.0,81070.0,0.259033]
[1741890558523,0.0003933,81076.0,81075.0,0.259019]
[1741890559690,0.0003933,81076.0,81075.0,0.260019]
[1741890559891,0.0003933,81076.0,81075.0,0.259019]
[1741890560294,0.0003933,81076.0,81075.0,0.263019]
[1741890560876,0.0003933,81076.0,81075.0,0.264019]
[1741890561701,0.0003933,81076.0,81075.0,0.313519]
[1741890561858,0.0003933,81076.0,81075.0,0.308519]
[1741890562058,0.0003933,81076.0,81075.0,0.312519]
[1741890562261,0.0003933,81076.0,81075.0,0.316519]
[1741890562476,0.0003933,81076.0,81075.0,0.312519]
[1741890562678,0.0003933,81076.0,81075.0,0.317519]
[1741890563490,0.0003933,81076.0,81075.0,0.268019]
[1741890563843,0.0003933,81076.0,81075.0,0.264019]
[1741890564574,0.0003933,81076.0,81075.0,0.270019]
[1741890565177,0.0003933,81076.0,81075.0,0.259019]
[1741890565353,0.0003933,81076.0,81075.0,0.262019]
[1741890566023,0.0003933,81076.0,81075.0,0.265019]
[1741890566307,0.0003933,81076.0,81075.0,0.262019]
[1741890566507,0.0003933,81076.0,81075.0,0.015334]
[1741890567031,0.0003933,81076.0,81075.0,0.012334]
[1741890567972,0.0003933,81076.0,81075.0,0.015334]
[1741890568399,0.0003933,81076.0,81075.0,0.003]
[1741890568622,0.0003933,81076.0,81074.0,0.259019]
[1741890568792,0.0003933,81076.0,81075.0,0.003]
[1741890568998,0.0003933,81076.0,81075.0,0.018334]
[1741890569394,0.0003933,81076.0,81075.0,0.015334]
[1741890569596,0.0003933,81076.0,81075.0,0.004]
[1741890569802,0.2470753,81076.0,81075.0,0.004]
[1741890570013,0.67911029,81076.0,81075.0,0.004]
[1741890570600,0.67911029,81076.0,81075.0,0.001]
[1741890571026,0.67911029,81076.0,81075.0,0.002]
[1741890571461,0.246724,81062.0,81061.0,0.000338]
[1741890571829,0.37876099,81062.0,81061.0,0.000338]
[1741890572045,0.67876099,81062.0,81061.0,0.000338]
[1741890572395,0.69262169,81062.0,81061.0,0.000338]
[1741890572527,0.69262169,81062.0,81061.0,0.003338]
[1741890573127,0.69262169,81062.0,81061.0,0.004338]
[1741890573326,0.69262169,81062.0,81061.0,0.003338]
[1741890573569,0.85626169,81062.0,81061.0,0.003338]
[1741890574085,0.85618169,81062.0,81061.0,0.000338]
[1741890574293,0.85618169,81062.0,81061.0,0.001338]
[1741890574466,0.87072254,81062.0,81061.0,0.001338]
[1741890575592,0.89527656,81062.0,81061.0,0.002338]
[1741890575810,0.64855256,81062.0,81061.0,0.002338]
[1741890576025,0.88073571,81062.0,81061.0,0.002338]
[1741890577262,0.62155571,81062.0,81061.0,0.002338]
[1741890577461,0.7240247,81062.0,81061.0,0.002338]
[1741890577676,0.7363607,81062.0,81061.0,0.002338]
[1741890578306,0.85606169,81062.0,81061.0,0.002338]
[1741890578713,0.84372569,81062.0,81061.0,0.002338]
[1741890579088,0.4773007,81062.0,81061.0,0.002338]
[1741890579293,0.0138607,81062.0,81061.0,0.002338]
[1741890579511,0.4095,81063.0,81061.0,0.002338]
[1741890579711,0.4095,81063.0,81062.0,0.012336]
[1741890579942,0.4095,81063.0,81062.0,0.25906]
[1741890580146,0.4095,81063.0,81061.0,0.002338]
[1741890580471,0.656221,81063.0,81061.0,0.001338]
[1741890580725,0.656221,81063.0,81061.0,0.002338]
[1741890580893,0.78979408,81063.0,81061.0,0.002338]
[1741890581092,0.80213008,81063.0,81061.0,0.002338]
[1741890581701,0.78979408,81063.0,81061.0,0.001338]
[1741890581933,0.78979408,81063.0,81062.0,0.001]
[1741890582404,0.80213008,81063.0,81061.0,0.001338]
[1741890582535,0.78979408,81063.0,81061.0,0.002338]
[1741890582873,0.78979408,81063.0,81061.0,0.001338]
[1741890583077,0.38029408,81063.0,81061.0,0.000338]
[1741890583239,0.38029408,81063.0,81062.0,0.002]
[1741890583441,0.38029408,81063.0,81062.0,0.001]
[1741890583884,0.38029408,81063.0,81061.0,0.000338]
[1741890584735,0.38029408,81063.0,81061.0,0.002338]
[1741890586077,0.2976,81062.0,81061.0,0.002338]
[1741890587145,0.246691,81074.0,81065.0,0.012335]
[1741890587352,0.36640299,81070.0,81064.0,0.012335]
[1741890587507,0.11970099,81070.0,81065.0,0.246715]
[1741890587706,0.246705,81069.0,81064.0,0.012335]
[1741890588523,0.11970099,81070.0,81066.0,0.012335]
[1741890588727,0.11970099,81070.0,81066.0,0.259044]
[1741890588926,0.11970099,81070.0,81064.0,0.012335]
[1741890589126,0.246709,81067.0,81062.0,0.012336]
[1741890589335,0.246715,81065.0,81061.0,0.001338]
[1741890589723,0.012336,81062.0,81061.0,0.000338]
[1741890589925,0.246721,81063.0,81061.0,0.000338]
[1741890590112,0.000169,81079.0,81070.0,0.246697]
[1741890590312,0.52983499,81072.0,81064.0,0.012335]
[1741890590646,0.52983499,81072.0,81065.0,0.012335]
[1741890591047,0.2467,81070.0,81065.0,0.012335]
[1741890592496,0.2467,81070.0,81063.0,0.259054]
[1741890592708,0.246724,81062.0,81061.0,0.000338]
[1741890593923,0.25906,81062.0,81061.0,0.000338]
[1741890594474,0.25906,81062.0,81061.0,0.003338]
[1741890595330,0.25906,81062.0,81061.0,0.005338]
[1741890595563,0.55906,81062.0,81061.0,0.005338]
[1741890598189,0.000169,81063.0,81061.0,0.005338]
[1741890598464,0.000169,81063.0,81062.0,0.24613463]
[1741890598620,0.000169,81063.0,81062.0,0.25723699]
[1741890598821,0.000169,81063.0,81062.0,0.0753]
[1741890599053,0.25906,81062.0,81061.0,0.000338]
[1741890599461,0.25906,81062.0,81061.0,0.004338]
[1741890599787,0.25906,81062.0,81061.0,0.000338]
[1741890599934,0.000169,81063.0,81061.0,0.000338]
[1741890600139,0.000169,81063.0,81062.0,0.016336]
[1741890600368,0.000169,81063.0,81062.0,0.13603699]
[1741890600574,0.000169,81063.0,81062.0,0.13203699]
[1741890601027,0.000169,81063.0,81062.0,0.012336]
[1741890601204,0.000169,81063.0,81062.0,0.016336]
[1741890601615,0.000169,81063.0,81062.0,0.012336]
[1741890601821,0.000169,81063.0,81062.0,0.018336]
[1741890602955,0.000169,81063.0,81062.0,0.006]
[1741890604149,0.012505,81063.0,81062.0,0.006]
[1741890604490,0.000169,81063.0,81062.0,0.006]
[1741890604627,0.24689,81063.0,81062.0,0.009]
[1741890604813,0.67892699,81063.0,81062.0,0.009]
[1741890605866,0.300169,81063.0,81062.0,0.003338]
[1741890606068,0.300169,81063.0,81062.0,0.000338]
[1741890606268,0.312505,81063.0,81062.0,0.004338]
[1741890606465,0.32626238,81063.0,81062.0,0.005338]
[1741890606670,0.44596337,81063.0,81062.0,0.001338]
[1741890607048,0.44596337,81063.0,81062.0,0.002338]
[1741890607499,0.44596337,81063.0,81062.0,0.001338]
[1741890607904,0.4828279,81063.0,81062.0,0.002338]
[1741890608102,0.4828279,81063.0,81062.0,0.001338]
[1741890608307,0.4828279,81063.0,81062.0,0.002338]
[1741890608509,0.44596337,81063.0,81062.0,0.002338]
[1741890608723,0.44596337,81063.0,81062.0,0.001338]
[1741890609148,0.48283264,81063.0,81062.0,0.000338]
[1741890609512,0.44596337,81063.0,81062.0,0.000338]
[1741890609716,0.48283259,81063.0,81062.0,0.000338]
[1741890610299,0.64623259,81063.0,81062.0,0.000338]
[1741890611869,0.66077344,81063.0,81062.0,0.000338]
[1741890612074,0.246849,81021.0,81020.0,0.0766]
[1741890612305,0.012342,81020.0,81019.0,0.02415281]
[1741890612865,0.04925433,81020.0,81019.0,0.02415281]
[1741890613007,0.04925433,81020.0,81003.0,0.0766]
[1741890613008,0.24688,81011.0,81003.0,0.0766]
[1741890613388,0.24688,81011.0,80996.0,0.0773]
[1741890613389,0.012345,81004.0,80996.0,0.0773]
[1741890613567,0.012345,81004.0,81003.0,0.00012414]
[1741890614650,0.43204599,81004.0,81003.0,0.00012414]
[1741890614812,0.44658684,81004.0,81003.0,0.00012414]
[1741890615435,0.59548599,81004.0,81003.0,0.00012414]
[1741890615649,0.29548599,81004.0,81003.0,0.00612414]
[1741890616099,0.29548599,81004.0,81003.0,0.00712414]
[1741890616300,0.59548599,81004.0,81003.0,0.00112414]
[1741890616507,0.59548599,81004.0,81003.0,0.00212414]
[1741890616707,0.61002684,81004.0,81003.0,0.00212414]
[1741890617127,0.62936933,81004.0,81003.0,0.00212414]
[1741890618110,0.259303,80986.0,80985.0,0.010338]
[1741890618377,0.3,80988.0,80985.0,0.01046219]
[1741890618598,0.559297,80988.0,80985.0,0.01046219]
[1741890618757,0.259303,80986.0,80985.0,0.01046219]
[1741890619377,0.06656063,80986.0,80985.0,0.01046219]
[1741890619578,0.06656063,80986.0,80985.0,0.01246219]
[1741890619977,0.06656063,80986.0,80985.0,0.01046219]
[1741890620179,0.48626162,80986.0,80985.0,0.01346219]
[1741890620382,0.50080247,80986.0,80985.0,0.0026618]
[1741890620587,0.48626162,80986.0,80985.0,0.0026618]
[1741890621346,0.48626162,80986.0,80985.0,0.0046618]
[1741890621549,0.48626162,80986.0,80985.0,0.0026618]
[1741890621810,0.312347,80985.0,80984.0,0.00023613]
[1741890622139,0.312347,80985.0,80984.0,0.00034568]
[1741890622140,0.44658884,80985.0,80984.0,0.00034568]
[1741890622611,0.14658884,80985.0,80984.0,0.00034568]
[1741890623233,0.14958884,80985.0,80984.0,0.00034568]
[1741890623905,0.14958884,80985.0,80980.0,0.000338]
[1741890623906,0.02688885,80981.0,80980.0,0.000338]
[1741890624122,0.39356084,80981.0,80980.0,0.00044257]
[1741890624503,0.69356084,80981.0,80980.0,0.00044257]
[1741890624715,0.02688885,80980.0,80979.0,5.7e-07]
[1741890624917,0.14658984,80980.0,80979.0,0.00012476]
[1741890626106,0.14758984,80980.0,80979.0,0.00012476]
[1741890626775,0.14858984,80980.0,80979.0,0.00012476]
[1741890628830,0.16794039,80980.0,80979.0,0.00012476]
[1741890634553,0.58346209,80979.0,80976.0,0.0003376]
[1741890634757,0.70316308,80979.0,80978.0,0.00046241]
[1741890634901,0.70316308,80979.0,80978.0,4.1e-07]
[1741890635106,0.259411,80952.0,80949.0,0.0003376]
[1741890635288,0.259411,80952.0,80951.0,0.00497037]
[1741890635289,0.54267199,80952.0,80951.0,0.00497037]
[1741890636092,0.55604944,80952.0,80951.0,0.00497037]
[1741890636763,0.55704944,80952.0,80951.0,0.00497037]
[1741890636963,0.54367199,80952.0,80951.0,0.00497037]
[1741890637165,0.001,80952.0,80951.0,0.00497037]
[1741890637901,0.410619,80953.0,80951.0,0.00497037]
[1741890638261,0.001,80952.0,80951.0,0.00497037]
[1741890638467,0.001,80952.0,80951.0,0.26438637]
[1741890638675,0.247042,80958.0,80951.0,0.00497037]
[1741890638899,0.012352,80954.0,80951.0,0.00497037]
[1741890639126,0.012352,80954.0,80951.0,0.00697037]
[1741890639588,0.247058,80953.0,80951.0,0.00497037]
[1741890639969,0.247058,80953.0,80951.0,0.00697037]
[1741890640540,0.25941,80953.0,80951.0,0.00697037]
[1741890640976,0.247058,80953.0,80951.0,0.00697037]
[1741890641178,0.01935287,80954.0,80951.0,0.00597037]
[1741890641385,0.01935287,80954.0,80952.0,0.247059]
[1741890641586,0.01935287,80954.0,80952.0,0.259411]
[1741890641767,0.01935287,80954.0,80951.0,0.02032337]
[1741890642062,0.01935287,80954.0,80951.0,0.01732337]
[1741890642269,0.01935287,80954.0,80951.0,0.02032337]
[1741890642745,0.01935287,80954.0,80951.0,0.01732337]
[1741890643257,0.24705,80956.0,80951.0,0.00797037]
[1741890643798,0.247042,80958.0,80952.0,0.247059]
[1741890644000,0.247047,80956.0,80951.0,0.00797037]
[1741890644220,0.259411,80952.0,80951.0,0.00797037]
[1741890644423,0.259411,80952.0,80951.0,0.00597037]
[1741890644654,0.259411,80952.0,80951.0,0.00497037]
[1741890644814,0.259411,80952.0,80951.0,0.00697037]
[1741890645232,0.247059,80952.0,80951.0,0.00497037]
[1741890645432,0.259411,80952.0,80951.0,0.00497037]
[1741890645955,0.259411,80952.0,80951.0,0.00997037]
[1741890646880,0.422971,80952.0,80951.0,0.00997037]
[1741890647463,0.44232427,80952.0,80951.0,0.00897037]
[1741890647863,0.44232427,80952.0,80951.0,0.00997037]
[1741890648227,0.44232427,80952.0,80951.0,0.00597037]
[1741890648405,0.44232427,80952.0,80951.0,0.00697037]
[1741890649969,0.27876427,80952.0,80951.0,0.00697037]
[1741890650427,0.01935327,80952.0,80951.0,0.00697037]
[1741890650923,0.27876427,80952.0,80951.0,0.00697037]
[1741890652500,0.259419,80950.0,80949.0,0.0003376]
[1741890655368,0.00262563,80951.0,80949.0,0.0013376]
[1741890655667,0.24968963,80951.0,80949.0,0.0013376]
[1741890655812,0.012353,80950.0,80949.0,0.0013376]
[1741890656208,0.012353,80950.0,80949.0,0.0003376]
[1741890656209,0.13205399,80950.0,80949.0,0.0003376]
[1741890656483,0.48361439,80950.0,80949.0,0.0003376]
[1741890656610,0.48361439,80950.0,80949.0,0.0013376]
[1741890656811,0.48361439,80950.0,80949.0,6e-07]
[1741890658088,0.012355,80938.0,80937.0,0.000338]
[1741890658284,0.29561599,80938.0,80937.0,0.000338]
[1741890659485,0.56207653,80938.0,80937.0,0.000338]
[1741890660127,0.26646054,80938.0,80937.0,0.000338]
[1741890660274,0.19527354,80938.0,80937.0,0.000338]
[1741890660471,0.44237554,80938.0,80937.0,0.000338]
[1741890661498,0.44237554,80938.0,80937.0,0.001338]
[1741890662116,0.03670548,80942.0,80937.0,0.001338]
[1741890662436,0.247095,80941.0,80937.0,0.001338]
[1741890662825,0.16356,80948.0,80947.0,0.259425]
[1741890663190,0.16356,80948.0,80947.0,0.256799]
[1741890663394,0.16356,80948.0,80947.0,0.012353]
[1741890663723,0.02437873,80951.0,80948.0,0.259425]
[1741890663936,0.00039303,80952.0,80951.0,0.259416]
[1741890664944,0.00039303,80952.0,80951.0,0.50731699]
[1741890665509,0.00039303,80952.0,80951.0,0.387616]
[1741890665985,0.00039303,80952.0,80951.0,0.0814]
[1741890666163,0.00039303,80952.0,80951.0,0.001]
[1741890666363,0.00039303,80952.0,80951.0,0.259416]
[1741890666568,0.01974571,80952.0,80951.0,0.264416]
[1741890666963,0.01974571,80952.0,80951.0,0.263416]
[1741890667168,0.01974571,80952.0,80951.0,0.266416]
[1741890667537,0.01974571,80952.0,80951.0,0.263416]
[1741890667731,0.01974571,80952.0,80951.0,0.266416]
[1741890668151,0.01974571,80952.0,80951.0,0.262416]
[1741890668389,0.01974571,80952.0,80951.0,0.344616]
[1741890668588,0.01974571,80952.0,80951.0,0.46731699]
[1741890668943,0.01974571,80952.0,80951.0,0.344616]
[1741890669163,0.01974571,80952.0,80951.0,0.348616]
[1741890669898,0.01974571,80952.0,80951.0,0.46831699]
[1741890670100,0.01974571,80952.0,80951.0,0.76831699]
[1741890670470,7.1e-07,80952.0,80951.0,0.81751699]
[1741890670607,0.0003384,80969.0,80968.0,0.334361]
[1741890670808,0.0003384,80969.0,80968.0,0.33448541]
[1741890671395,0.0003384,80969.0,80968.0,0.4541864]
[1741890671596,0.0003384,80969.0,80968.0,0.4531864]
[1741890672097,0.0126884,80969.0,80968.0,0.00012441]
[1741890672297,0.0003384,80969.0,80968.0,0.00012441]
[1741890672416,0.0003384,80969.0,80968.0,0.25948541]
[1741890672614,0.0003384,80969.0,80968.0,0.26548541]
[1741890673266,0.0003384,80969.0,80968.0,0.26048541]
[1741890673641,0.0003384,80969.0,80968.0,0.25948541]
[1741890673843,0.0003384,80969.0,80968.0,0.26148541]
[1741890674119,0.0003384,80969.0,80968.0,0.26348541]
[1741890674284,0.01301132,80974.0,80970.0,0.259352]
[1741890674486,0.259358,80969.0,80968.0,0.00512441]
[1741890674912,0.247008,80969.0,80968.0,0.00512441]
[1741890675050,0.01348203,80974.0,80969.0,0.01235]
[1741890675247,0.246995,80974.0,80968.0,0.25213541]
[1741890675472,0.246995,80973.0,80968.0,0.00312441]
[1741890675652,0.20048676,80974.0,80968.0,0.00612441]
[1741890675852,0.012349,80975.0,80968.0,0.00612441]
[1741890675853,0.247002,80971.0,80968.0,0.00612441]
[1741890676239,0.247002,80971.0,80968.0,0.00312441]
[1741890676444,0.247008,80969.0,80968.0,0.00312441]
[1741890676695,0.259358,80969.0,80968.0,0.00512441]
[1741890676893,0.259358,80969.0,80968.0,0.00212441]
[1741890677160,0.2596964,80969.0,80968.0,0.00212441]
[1741890677333,0.2596964,80969.0,80968.0,0.00412441]
[1741890677738,0.01968846,80969.0,80968.0,0.00212441]
[1741890678154,0.01968846,80969.0,80968.0,0.00412441]
[1741890678347,0.01968846,80969.0,80968.0,0.00212441]
[1741890678551,0.03203846,80969.0,80968.0,0.00212441]
[1741890678752,0.03203846,80969.0,80968.0,0.00112441]
[1741890679156,0.03203846,80969.0,80968.0,0.00212441]
[1741890679537,0.03203846,80969.0,80968.0,0.00112441]
[1741890680072,0.01968846,80969.0,80968.0,0.00012441]
[1741890680274,0.03203846,80969.0,80968.0,0.00012441]
[1741890680433,0.01968846,80969.0,80968.0,0.00212441]
[1741890680637,0.01968846,80969.0,80968.0,0.00012441]
[1741890681248,0.03203846,80969.0,80968.0,0.00012441]
[1741890682036,0.03203846,80969.0,80968.0,0.00212441]
[1741890683231,0.0126884,80969.0,80968.0,0.00212441]
[1741890683389,0.0126884,80969.0,80968.0,0.00112441]
[1741890684011,0.0126884,80969.0,80968.0,0.00012441]
[1741890684717,0.1637784,80969.0,80968.0,0.00012441]
[1741890685137,0.1637784,80969.0,80968.0,0.24713541]
[1741890685138,0.0003384,80969.0,80968.0,0.24713541]
[1741890685441,0.0003384,80969.0,80968.0,0.25948541]
[1741890685993,0.0003384,80969.0,80968.0,0.26048541]
[1741890686420,0.0003384,80969.0,80968.0,0.25948541]
[1741890687157,0.0003384,80969.0,80968.0,0.26248541]
[1741890687341,0.0003384,80969.0,80968.0,0.00012441]
[1741890687537,0.0003384,80969.0,80968.0,0.00612441]
[1741890688343,0.0003384,80969.0,80968.0,0.01847441]
[1741890688551,0.0003384,80969.0,80968.0,0.01864361]
[1741890689045,0.0003384,80969.0,80968.0,0.01564361]
[1741890689201,0.0003384,80969.0,80968.0,0.01964361]
[1741890690629,0.0003384,80969.0,80968.0,0.02087848]
[1741890691247,0.0003384,80969.0,80968.0,0.01964361]
[1741890691992,0.0003384,80969.0,80968.0,0.02087849]
[1741890692725,0.259327,80979.0,80972.0,0.246997]
[1741890693129,0.259327,80979.0,80973.0,0.246993]
[1741890693334,0.24699,80975.0,80970.0,0.247003]
[1741890693531,0.24699,80975.0,80969.0,0.259358]
[1741890694208,0.246983,80977.0,80972.0,0.247998]
[1741890694418,0.2473144,80980.0,80974.0,0.246992]
[1741890694933,0.24698,80979.0,80973.0,0.259342]
[1741890695134,0.246982,80978.0,80973.0,0.012349]
[1741890695679,0.012349,80978.0,80972.0,0.001]
[1741890695882,0.246983,80977.0,80972.0,0.002]
[1741890696121,0.0003384,80980.0,80974.0,0.012349]
[1741890696297,0.0003384,80980.0,80975.0,0.246987]
[1741890696500,0.0003384,80980.0,80977.0,0.259329]
[1741890697480,0.0003384,80980.0,80978.0,0.012349]
[1741890697631,0.0003384,80980.0,80975.0,0.013349]
[1741890697799,0.0003384,80980.0,80975.0,0.012349]
[1741890697999,0.0003384,80980.0,80976.0,0.246986]
[1741890698195,0.0003384,80980.0,80977.0,0.001]
[1741890698658,0.0003384,80980.0,80976.0,0.259335]
[1741890698864,0.0003384,80980.0,80977.0,0.25933]
[1741890699059,0.0003384,80980.0,80978.0,0.012349]
[1741890699474,0.2473154,80980.0,80975.0,0.259336]
[1741890699894,0.2473154,80980.0,80944.0,0.00931331]
[1741890699895,0.012349,80973.0,80968.0,0.01264361]
[1741890700051,0.01235,80970.0,80968.0,0.00029361]
[1741890700251,0.247002,80971.0,80968.0,0.00029361]
[1741890700509,0.259346,80973.0,80968.0,0.00029361]
[1741890700715,0.246995,80974.0,80968.0,0.24730261]
[1741890701072,0.246995,80974.0,80968.0,0.24930261]
[1741890701275,0.259332,80978.0,80972.0,0.012349]
[1741890701508,0.0003384,80980.0,80972.0,0.012349]
[1741890701509,0.0003384,80980.0,80976.0,0.012349]
[1741890701682,0.0003384,80980.0,80979.0,0.089848]
[1741890701879,0.01968551,80980.0,80979.0,0.2107836]
[1741890702080,0.01968551,80980.0,80979.0,1.7107836]
[1741890702282,0.01968551,80980.0,80979.0,1.70954899]
[1741890702610,0.0001691,81004.0,81003.0,0.259249]
[1741890702817,0.0001691,81004.0,81003.0,0.37894999]
[1741890703647,0.0001691,81004.0,81003.0,1.87894999]
[1741890704030,0.0001691,81004.0,81003.0,1.8790744]
[1741890704235,0.0001691,81004.0,81003.0,1.8830744]
[1741890704884,1e-07,81004.0,81003.0,2.28664911]
[1741890705114,0.0003384,81028.0,81027.0,0.338072]
[1741890705887,0.0003384,81028.0,81027.0,1.838072]
[1741890707080,0.0003384,81028.0,81027.0,1.5]
[1741890707281,0.0003384,81028.0,81027.0,1.502]
[1741890707526,0.0003384,81028.0,81027.0,0.002]
[1741890707934,0.0126794,81028.0,81027.0,0.002]
[1741890708190,0.0003384,81028.0,81026.0,0.012341]
[1741890708392,0.0003384,81028.0,81027.0,0.012341]
[1741890708627,0.0003384,81028.0,81027.0,0.014341]
[1741890708863,0.0196732,81028.0,81027.0,0.014341]
[1741890709041,0.0196732,81028.0,81027.0,0.002]
[1741890709389,0.0196732,81028.0,81027.0,0.248831]
[1741890709567,0.0196732,81028.0,81027.0,0.261172]
[1741890710430,0.0196732,81028.0,81027.0,0.263172]
[1741890710625,0.0196732,81028.0,81027.0,0.004]
[1741890711049,0.0196732,81028.0,81027.0,0.002]